[Event "January 2 Early 2024"]
[Site "https://www.chess.com"]
[Date "2024.01.02"]
[Round "6"]
[White "Veiga, Jose Francisco R P Neves"]
[Black "knightmareprodigy"]
[Result "1-0"]
[Board "110"]
[TimeControl "180+1"]
[WhiteFideId "1930087"]
[WhiteElo "2536"]
[BlackElo "2310"]
[WhiteTeam "POR"]
[WhiteClock "0:02:25"]
[BlackClock "0:01:22"]

1. c4 {[%clk 0:02:48]}  Nf6 {[%clk 0:02:56]} 2. Nc3 {[%clk 0:02:48]}  e6 {[%clk 0:02:56]} 3. e4 {[%clk 0:02:47]}  c5 {[%clk 0:02:55]} 4. e5 {[%clk 0:02:44]}  Ng8 {[%clk 0:02:55]} 5. Nf3 {[%clk 0:02:45]}  d6 {[%clk 0:02:53]} 6. d4 {[%clk 0:02:38]}  cxd4 {[%clk 0:02:51]} 7. Qxd4 {[%clk 0:02:38]}  Nc6 {[%clk 0:02:50]} 8. Qe3 {[%clk 0:02:37]}  dxe5 {[%clk 0:02:49]} 9. Nxe5 {[%clk 0:02:37]}  Bd7 {[%clk 0:02:47]} 10. Be2 {[%clk 0:02:36]}  Nf6 {[%clk 0:02:44]} 11. O-O {[%clk 0:02:36]}  Nxe5 {[%clk 0:02:41]} 12. Qxe5 {[%clk 0:02:36]}  Bb4 {[%clk 0:02:37]} 13. Bf3 {[%clk 0:02:36]}  Bc6 {[%clk 0:02:27]} 14. Bxc6+ {[%clk 0:02:35]}  bxc6 {[%clk 0:02:27]} 15. Bg5 {[%clk 0:02:35]}  O-O {[%clk 0:02:23]} 16. Rad1 {[%clk 0:02:32]}  Qe7 {[%clk 0:02:22]} 17. Ne4 {[%clk 0:02:31]}  Ng4 {[%clk 0:01:25]} 18. Bxe7 {[%clk 0:02:24]}  Nxe5 {[%clk 0:01:22]} 19. Bxb4 {[%clk 0:02:25]} 1-0

[Event "January 2 Early 2024"]
[Site "https://www.chess.com"]
[Date "2024.01.02"]
[Round "6"]
[White "Tifferet, Shakked"]
[Black "Szente Varga, Fruzsina"]
[Result "0-1"]
[Board "111"]
[TimeControl "180+1"]
[WhiteFideId "2811529"]
[BlackFideId "712264"]
[WhiteElo "2536"]
[BlackElo "2291"]
[WhiteTeam "ISR"]
[BlackTeam "HUN"]
[WhiteClock "0:00:46"]
[BlackClock "0:00:58"]

1. e4 {[%clk 0:02:55]}  e5 {[%clk 0:02:58]} 2. Nf3 {[%clk 0:02:54]}  Nc6 {[%clk 0:02:58]} 3. Nc3 {[%clk 0:02:55]}  Nf6 {[%clk 0:02:57]} 4. Be2 {[%clk 0:02:55]}  Bc5 {[%clk 0:02:56]} 5. Nxe5 {[%clk 0:02:55]}  Nxe5 {[%clk 0:02:55]} 6. d4 {[%clk 0:02:55]}  Bxd4 {[%clk 0:02:55]} 7. Qxd4 {[%clk 0:02:55]}  d6 {[%clk 0:02:56]} 8. Bg5 {[%clk 0:02:50]}  h6 {[%clk 0:02:56]} 9. Bh4 {[%clk 0:02:48]}  Ng6 {[%clk 0:02:55]} 10. Bxf6 {[%clk 0:02:47]}  Qxf6 {[%clk 0:02:56]} 11. Qxf6 {[%clk 0:02:47]}  gxf6 {[%clk 0:02:57]} 12. Nd5 {[%clk 0:02:48]}  Kd8 {[%clk 0:02:54]} 13. Nxf6 {[%clk 0:02:42]}  Be6 {[%clk 0:02:49]} 14. g3 {[%clk 0:02:36]}  Ke7 {[%clk 0:02:33]} 15. Nh5 {[%clk 0:02:33]}  d5 {[%clk 0:02:28]} 16. exd5 {[%clk 0:02:29]}  Bxd5 {[%clk 0:02:28]} 17. O-O {[%clk 0:02:29]}  Rhd8 {[%clk 0:02:21]} 18. Rfe1 {[%clk 0:02:25]}  Kf8 {[%clk 0:02:21]} 19. Rad1 {[%clk 0:02:24]}  Be4 {[%clk 0:01:54]} 20. Rxd8+ {[%clk 0:02:03]}  Rxd8 {[%clk 0:01:55]} 21. Rd1 {[%clk 0:02:03]}  Re8 {[%clk 0:01:30]} 22. Nf6 {[%clk 0:02:01]}  Re6 {[%clk 0:01:29]} 23. Nxe4 {[%clk 0:02:00]}  Rxe4 {[%clk 0:01:30]} 24. Bf3 {[%clk 0:01:55]}  Rb4 {[%clk 0:01:29]} 25. b3 {[%clk 0:01:53]}  Ne5 {[%clk 0:01:25]} 26. Be2 {[%clk 0:01:46]}  Ke7 {[%clk 0:01:25]} 27. f4 {[%clk 0:01:45]}  Nd7 {[%clk 0:01:22]} 28. Bf3 {[%clk 0:01:41]}  Nf6 {[%clk 0:01:18]} 29. a3 {[%clk 0:01:34]}  Rb5 {[%clk 0:01:12]} 30. Kf2 {[%clk 0:01:33]}  c6 {[%clk 0:01:11]} 31. a4 {[%clk 0:01:29]}  Rc5 {[%clk 0:01:12]} 32. Rd2 {[%clk 0:01:28]}  Rc3 {[%clk 0:01:11]} 33. g4 {[%clk 0:01:15]}  Ke6 {[%clk 0:01:10]} 34. h4 {[%clk 0:01:15]}  Nd5 {[%clk 0:01:10]} 35. Bxd5+ {[%clk 0:01:05]}  cxd5 {[%clk 0:01:11]} 36. Re2+ {[%clk 0:01:05]}  Kd6 {[%clk 0:01:08]} 37. Kg2 {[%clk 0:01:02]}  d4 {[%clk 0:01:02]} 38. g5 {[%clk 0:01:02]}  hxg5 {[%clk 0:01:02]} 39. fxg5 {[%clk 0:01:02]}  d3 {[%clk 0:01:01]} 40. Rd2 {[%clk 0:01:02]}  Rxc2 {[%clk 0:01:01]} 41. h5 {[%clk 0:00:51]}  Rxd2+ {[%clk 0:01:01]} 42. Kg3 {[%clk 0:00:52]}  Ke7 {[%clk 0:00:59]} 43. h6 {[%clk 0:00:51]}  Kf8 {[%clk 0:00:59]} 44. Kf3 {[%clk 0:00:51]}  Re2 {[%clk 0:00:59]} 45. a5 {[%clk 0:00:50]}  Re6 {[%clk 0:00:58]} 46. h7 {[%clk 0:00:47]}  Kg7 {[%clk 0:00:58]} 47. a6 {[%clk 0:00:46]}  bxa6 {[%clk 0:00:58]} 0-1

[Event "January 2 Early 2024"]
[Site "https://www.chess.com"]
[Date "2024.01.02"]
[Round "6"]
[White "Baches Garcia, Guillermo"]
[Black "Rose, Felix"]
[Result "0-1"]
[Board "113"]
[TimeControl "180+1"]
[WhiteFideId "2209764"]
[BlackFideId "5105722"]
[WhiteElo "2530"]
[BlackElo "2208"]
[WhiteTeam "ESP"]
[BlackTeam "MEX"]
[WhiteClock "0:00:00"]
[BlackClock "0:00:27"]

1. d4 {[%clk 0:03:00]}  d5 {[%clk 0:02:59]} 2. Nf3 {[%clk 0:03:01]}  Nf6 {[%clk 0:02:59]} 3. Bf4 {[%clk 0:03:01]}  e6 {[%clk 0:02:59]} 4. e3 {[%clk 0:03:01]}  Bd6 {[%clk 0:02:59]} 5. Ne5 {[%clk 0:03:01]}  O-O {[%clk 0:02:57]} 6. Nd2 {[%clk 0:03:01]}  c5 {[%clk 0:02:57]} 7. c3 {[%clk 0:03:01]}  b6 {[%clk 0:02:57]} 8. Ndf3 {[%clk 0:03:00]}  Bb7 {[%clk 0:02:50]} 9. h3 {[%clk 0:03:00]}  Nc6 {[%clk 0:02:50]} 10. Bd3 {[%clk 0:02:58]}  Ne7 {[%clk 0:02:47]} 11. Qb1 {[%clk 0:02:53]}  Ne4 {[%clk 0:02:42]} 12. Bh2 {[%clk 0:02:41]}  f6 {[%clk 0:02:40]} 13. Ng4 {[%clk 0:02:38]}  Bxh2 {[%clk 0:02:32]} 14. Ngxh2 {[%clk 0:02:36]}  cxd4 {[%clk 0:02:26]} 15. exd4 {[%clk 0:02:36]}  f5 {[%clk 0:02:23]} 16. O-O {[%clk 0:02:32]}  Ng6 {[%clk 0:02:11]} 17. Re1 {[%clk 0:02:27]}  Qd6 {[%clk 0:02:07]} 18. Qd1 {[%clk 0:02:20]}  Rae8 {[%clk 0:02:04]} 19. Qc2 {[%clk 0:02:12]}  Nf4 {[%clk 0:01:59]} 20. Bf1 {[%clk 0:02:11]}  g5 {[%clk 0:01:53]} 21. Ne5 {[%clk 0:02:06]}  Ng6 {[%clk 0:01:48]} 22. Nd3 {[%clk 0:01:36]}  Ba6 {[%clk 0:01:36]} 23. a4 {[%clk 0:01:32]}  Bxd3 {[%clk 0:01:31]} 24. Bxd3 {[%clk 0:01:32]}  Kg7 {[%clk 0:01:13]} 25. a5 {[%clk 0:01:30]}  Rf7 {[%clk 0:01:12]} 26. axb6 {[%clk 0:01:28]}  axb6 {[%clk 0:01:13]} 27. Ra6 {[%clk 0:01:26]}  Ree7 {[%clk 0:01:12]} 28. Qb3 {[%clk 0:01:12]}  Nxf2 {[%clk 0:01:09]} 29. Kxf2 {[%clk 0:00:59]}  Qxh2 {[%clk 0:01:09]} 30. Bf1 {[%clk 0:00:48]}  Nf4 {[%clk 0:01:05]} 31. c4 {[%clk 0:00:39]}  dxc4 {[%clk 0:01:02]} 32. Qg3 {[%clk 0:00:38]}  Qxg3+ {[%clk 0:00:57]} 33. Kxg3 {[%clk 0:00:39]}  b5 {[%clk 0:00:57]} 34. Rb6 {[%clk 0:00:36]}  Rb7 {[%clk 0:00:57]} 35. Rd6 {[%clk 0:00:31]}  Rfd7 {[%clk 0:00:56]} 36. Rc6 {[%clk 0:00:29]}  Rxd4 {[%clk 0:00:54]} 37. Kh2 {[%clk 0:00:26]}  Rd2 {[%clk 0:00:53]} 38. Kh1 {[%clk 0:00:26]}  Rxb2 {[%clk 0:00:42]} 39. g3 {[%clk 0:00:26]}  Nd3 {[%clk 0:00:40]} 40. Rexe6 {[%clk 0:00:23]}  Nf2+ {[%clk 0:00:34]} 41. Kg1 {[%clk 0:00:21]}  c3 {[%clk 0:00:33]} 42. Rxc3 {[%clk 0:00:20]}  Ne4 {[%clk 0:00:32]} 43. Rd3 {[%clk 0:00:13]}  Rc7 {[%clk 0:00:32]} 44. g4 {[%clk 0:00:09]}  Nd2 {[%clk 0:00:28]} 45. gxf5 {[%clk 0:00:00]}  Rc1 {[%clk 0:00:27]} 0-1

[Event "January 2 Early 2024"]
[Site "https://www.chess.com"]
[Date "2024.01.02"]
[Round "6"]
[White "Herman, Daniel"]
[Black "Popov, Konstantin"]
[Result "0-1"]
[Board "115"]
[TimeControl "180+1"]
[WhiteFideId "30935008"]
[BlackFideId "34137910"]
[WhiteElo "2411"]
[BlackElo "2907"]
[WhiteTeam "USA"]
[BlackTeam "FID"]
[WhiteClock "0:00:07"]
[BlackClock "0:01:45"]

1. e4 {[%clk 0:03:00]}  c5 {[%clk 0:02:59]} 2. Nf3 {[%clk 0:02:59]}  d6 {[%clk 0:02:58]} 3. d4 {[%clk 0:03:00]}  cxd4 {[%clk 0:02:59]} 4. Nxd4 {[%clk 0:03:00]}  Nf6 {[%clk 0:02:59]} 5. Nc3 {[%clk 0:03:01]}  a6 {[%clk 0:03:00]} 6. h3 {[%clk 0:03:01]}  e5 {[%clk 0:03:00]} 7. Nde2 {[%clk 0:03:02]}  h5 {[%clk 0:03:00]} 8. Bg5 {[%clk 0:03:01]}  Be6 {[%clk 0:03:00]} 9. Bxf6 {[%clk 0:02:58]}  Qxf6 {[%clk 0:03:01]} 10. Nd5 {[%clk 0:02:59]}  Qd8 {[%clk 0:03:01]} 11. Nec3 {[%clk 0:02:58]}  Nd7 {[%clk 0:03:01]} 12. Bc4 {[%clk 0:02:56]}  g6 {[%clk 0:03:02]} 13. Ne3 {[%clk 0:02:42]}  Rc8 {[%clk 0:02:55]} 14. Bxe6 {[%clk 0:02:30]}  fxe6 {[%clk 0:02:56]} 15. Qf3 {[%clk 0:02:05]}  Qf6 {[%clk 0:02:54]} 16. O-O-O {[%clk 0:01:58]}  Qxf3 {[%clk 0:02:51]} 17. gxf3 {[%clk 0:01:58]}  Be7 {[%clk 0:02:47]} 18. Rhg1 {[%clk 0:01:53]}  Kf7 {[%clk 0:02:46]} 19. a4 {[%clk 0:01:39]}  Rhf8 {[%clk 0:02:39]} 20. Nf1 {[%clk 0:01:14]}  Kg7 {[%clk 0:02:36]} 21. Nh2 {[%clk 0:01:07]}  Kh6 {[%clk 0:02:34]} 22. Kb1 {[%clk 0:01:06]}  Nb6 {[%clk 0:02:28]} 23. Rd3 {[%clk 0:00:50]}  Rc6 {[%clk 0:02:22]} 24. b3 {[%clk 0:00:49]}  Nd7 {[%clk 0:02:21]} 25. Kb2 {[%clk 0:00:47]}  Rfc8 {[%clk 0:02:18]} 26. Nf1 {[%clk 0:00:28]}  Nc5 {[%clk 0:02:17]} 27. Re3 {[%clk 0:00:25]}  Bg5 {[%clk 0:02:16]} 28. Rxg5 {[%clk 0:00:24]}  Kxg5 {[%clk 0:02:16]} 29. Ng3 {[%clk 0:00:20]}  Kh4 {[%clk 0:02:06]} 30. Nge2 {[%clk 0:00:19]}  Kg5 {[%clk 0:02:01]} 31. Nc1 {[%clk 0:00:13]}  Nd7 {[%clk 0:01:58]} 32. Rd3 {[%clk 0:00:11]}  b5 {[%clk 0:01:56]} 33. axb5 {[%clk 0:00:11]}  axb5 {[%clk 0:01:57]} 34. b4 {[%clk 0:00:10]}  Nb6 {[%clk 0:01:57]} 35. N1e2 {[%clk 0:00:08]}  Na4+ {[%clk 0:01:55]} 36. Kb3 {[%clk 0:00:05]}  Nxc3 {[%clk 0:01:56]} 37. Nxc3 {[%clk 0:00:06]}  Rb8 {[%clk 0:01:52]} 38. Ne2 {[%clk 0:00:06]}  Kf6 {[%clk 0:01:50]} 39. c3 {[%clk 0:00:05]}  Ke7 {[%clk 0:01:50]} 40. Rd2 {[%clk 0:00:06]}  Ra6 {[%clk 0:01:51]} 41. Ra2 {[%clk 0:00:06]}  Rxa2 {[%clk 0:01:50]} 42. Kxa2 {[%clk 0:00:07]}  Rf8 {[%clk 0:01:51]} 43. Ng1 {[%clk 0:00:06]}  d5 {[%clk 0:01:51]} 44. Kb3 {[%clk 0:00:06]}  dxe4 {[%clk 0:01:51]} 45. c4 {[%clk 0:00:05]}  bxc4+ {[%clk 0:01:51]} 46. Kxc4 {[%clk 0:00:06]}  exf3 {[%clk 0:01:52]} 47. Kc5 {[%clk 0:00:07]}  e4 {[%clk 0:01:52]} 48. Kd4 {[%clk 0:00:05]}  Rb8 {[%clk 0:01:50]} 49. Kxe4 {[%clk 0:00:05]}  Rxb4+ {[%clk 0:01:51]} 50. Kxf3 {[%clk 0:00:06]}  Kf6 {[%clk 0:01:51]} 51. Ne2 {[%clk 0:00:06]}  g5 {[%clk 0:01:52]} 52. Kg2 {[%clk 0:00:06]}  h4 {[%clk 0:01:52]} 53. Ng1 {[%clk 0:00:06]}  Rb3 {[%clk 0:01:51]} 54. Nf3 {[%clk 0:00:06]}  e5 {[%clk 0:01:51]} 55. Nh2 {[%clk 0:00:07]}  Rb4 {[%clk 0:01:50]} 56. Ng4+ {[%clk 0:00:07]}  Kf5 {[%clk 0:01:51]} 57. Ne3+ {[%clk 0:00:07]}  Ke6 {[%clk 0:01:51]} 58. Kf3 {[%clk 0:00:06]}  Rf4+ {[%clk 0:01:51]} 59. Kg2 {[%clk 0:00:07]}  e4 {[%clk 0:01:51]} 60. Nf1 {[%clk 0:00:06]}  Kd5 {[%clk 0:01:50]} 61. Ne3+ {[%clk 0:00:06]}  Kd4 {[%clk 0:01:50]} 62. Nf1 {[%clk 0:00:07]}  Kd3 {[%clk 0:01:47]} 63. Ne3 {[%clk 0:00:07]}  Ke2 {[%clk 0:01:47]} 64. Ng4 {[%clk 0:00:07]}  Rxg4+ {[%clk 0:01:47]} 65. hxg4 {[%clk 0:00:08]}  Ke1 {[%clk 0:01:47]} 66. Kg1 {[%clk 0:00:08]}  h3 {[%clk 0:01:45]} 67. Kh2 {[%clk 0:00:08]}  Kxf2 {[%clk 0:01:45]} 68. Kxh3 {[%clk 0:00:07]}  e3 {[%clk 0:01:45]} 0-1

[Event "January 2 Early 2024"]
[Site "https://www.chess.com"]
[Date "2024.01.02"]
[Round "6"]
[White "Matinian, Nikita"]
[Black "Astafurov, Arseniy"]
[Result "0-1"]
[Board "117"]
[TimeControl "180+1"]
[WhiteFideId "24129100"]
[BlackFideId "24175218"]
[WhiteElo "2732"]
[BlackElo "2402"]
[WhiteTeam "FID"]
[BlackTeam "RUS"]
[WhiteClock "0:01:43"]
[BlackClock "0:00:59"]

1. e4 {[%clk 0:03:00]}  e6 {[%clk 0:02:58]} 2. d4 {[%clk 0:03:01]}  d5 {[%clk 0:02:59]} 3. Nc3 {[%clk 0:03:02]}  Nf6 {[%clk 0:02:59]} 4. Bg5 {[%clk 0:03:01]}  dxe4 {[%clk 0:02:59]} 5. Nxe4 {[%clk 0:03:02]}  Be7 {[%clk 0:03:00]} 6. Nxf6+ {[%clk 0:03:02]}  Bxf6 {[%clk 0:03:00]} 7. Bxf6 {[%clk 0:03:01]}  Qxf6 {[%clk 0:03:01]} 8. Nf3 {[%clk 0:03:01]}  O-O {[%clk 0:02:59]} 9. Qd3 {[%clk 0:03:01]}  c5 {[%clk 0:02:56]} 10. Qe3 {[%clk 0:03:00]}  Nc6 {[%clk 0:02:52]} 11. O-O-O {[%clk 0:02:59]}  Rd8 {[%clk 0:02:29]} 12. c3 {[%clk 0:02:46]}  cxd4 {[%clk 0:02:16]} 13. Nxd4 {[%clk 0:02:47]}  Nxd4 {[%clk 0:02:05]} 14. cxd4 {[%clk 0:02:41]}  Bd7 {[%clk 0:02:05]} 15. Bd3 {[%clk 0:02:42]}  Rac8+ {[%clk 0:02:05]} 16. Kb1 {[%clk 0:02:42]}  Bc6 {[%clk 0:02:04]} 17. Rhg1 {[%clk 0:02:41]}  g6 {[%clk 0:02:00]} 18. Qe5 {[%clk 0:02:32]}  Kg7 {[%clk 0:01:28]} 19. Bc2 {[%clk 0:02:26]}  Qxe5 {[%clk 0:01:12]} 20. dxe5 {[%clk 0:02:26]}  Rxd1+ {[%clk 0:01:13]} 21. Rxd1 {[%clk 0:02:26]}  Bxg2 {[%clk 0:01:13]} 22. b4 {[%clk 0:02:24]}  Rc4 {[%clk 0:01:09]} 23. a3 {[%clk 0:02:23]}  Rh4 {[%clk 0:01:09]} 24. Rd7 {[%clk 0:01:46]}  Rxh2 {[%clk 0:01:06]} 25. f4 {[%clk 0:01:46]}  h5 {[%clk 0:01:01]} 26. Kb2 {[%clk 0:01:43]}  Be4 {[%clk 0:00:59]} 0-1

[Event "January 2 Early 2024"]
[Site "https://www.chess.com"]
[Date "2024.01.02"]
[Round "6"]
[White "Koshulyan, Egor A."]
[Black "Ferro, Mario"]
[Result "1-0"]
[Board "122"]
[TimeControl "180+1"]
[WhiteFideId "24237000"]
[BlackFideId "810290"]
[WhiteElo "2657"]
[BlackElo "2391"]
[WhiteTeam "RUS"]
[BlackTeam "ITA"]
[WhiteClock "0:00:10"]
[BlackClock "0:00:00"]

1. e4 {[%clk 0:03:00]}  g6 {[%clk 0:02:57]} 2. h4 {[%clk 0:02:59]}  h5 {[%clk 0:02:57]} 3. Nh3 {[%clk 0:02:57]}  d6 {[%clk 0:02:56]} 4. d4 {[%clk 0:02:56]}  Nf6 {[%clk 0:02:52]} 5. Nc3 {[%clk 0:02:55]}  Bg7 {[%clk 0:02:47]} 6. Bc4 {[%clk 0:02:54]}  e6 {[%clk 0:02:47]} 7. Ng5 {[%clk 0:02:52]}  O-O {[%clk 0:02:41]} 8. f3 {[%clk 0:02:51]}  d5 {[%clk 0:02:41]} 9. Bb3 {[%clk 0:02:48]}  dxe4 {[%clk 0:02:41]} 10. fxe4 {[%clk 0:02:49]}  Ng4 {[%clk 0:02:39]} 11. Nf3 {[%clk 0:02:36]}  c5 {[%clk 0:02:36]} 12. Bg5 {[%clk 0:02:30]}  Qc7 {[%clk 0:02:31]} 13. Ne2 {[%clk 0:02:23]}  cxd4 {[%clk 0:02:19]} 14. Nfxd4 {[%clk 0:02:23]}  Nc6 {[%clk 0:02:19]} 15. c3 {[%clk 0:02:10]}  Qe5 {[%clk 0:01:42]} 16. Qd3 {[%clk 0:02:06]}  Nxd4 {[%clk 0:01:21]} 17. cxd4 {[%clk 0:02:07]}  Qa5+ {[%clk 0:01:22]} 18. Bd2 {[%clk 0:01:58]}  Qb6 {[%clk 0:01:22]} 19. Rf1 {[%clk 0:01:38]}  Bd7 {[%clk 0:01:21]} 20. Bc4 {[%clk 0:01:25]}  Rac8 {[%clk 0:01:14]} 21. b3 {[%clk 0:01:20]}  a6 {[%clk 0:01:02]} 22. a4 {[%clk 0:01:09]}  Qd6 {[%clk 0:00:59]} 23. Rd1 {[%clk 0:01:00]}  Kh7 {[%clk 0:00:29]} 24. a5 {[%clk 0:00:58]}  Qa3 {[%clk 0:00:17]} 25. Nf4 {[%clk 0:00:42]}  e5 {[%clk 0:00:14]} 26. Nh3 {[%clk 0:00:34]}  Bb5 {[%clk 0:00:12]} 27. Ng5+ {[%clk 0:00:33]}  Kh8 {[%clk 0:00:07]} 28. Bxb5 {[%clk 0:00:28]}  axb5 {[%clk 0:00:06]} 29. Qxb5 {[%clk 0:00:20]}  exd4 {[%clk 0:00:03]} 30. Nxf7+ {[%clk 0:00:19]}  Kg8 {[%clk 0:00:02]} 31. Qd5 {[%clk 0:00:20]}  Kh7 {[%clk 0:00:01]} 32. Ng5+ {[%clk 0:00:20]}  Kh6 {[%clk 0:00:01]} 33. Ne6+ {[%clk 0:00:19]}  Kh7 {[%clk 0:00:01]} 34. Nxf8+ {[%clk 0:00:19]}  Rxf8 {[%clk 0:00:01]} 35. Rxf8 {[%clk 0:00:18]}  Qxf8 {[%clk 0:00:00]} 36. Ke2 {[%clk 0:00:10]} 1-0

[Event "January 2 Early 2024"]
[Site "https://www.chess.com"]
[Date "2024.01.02"]
[Round "6"]
[White "Golubev, Mikhail"]
[Black "Andersson, Bjorn 1960"]
[Result "1-0"]
[Board "125"]
[TimeControl "180+1"]
[WhiteFideId "14100983"]
[BlackFideId "1700545"]
[WhiteElo "2602"]
[BlackElo "2376"]
[WhiteTeam "UKR"]
[BlackTeam "SWE"]
[WhiteClock "0:00:52"]
[BlackClock "0:00:20"]

1. e4 {[%clk 0:03:00]}  e6 {[%clk 0:02:59]} 2. d4 {[%clk 0:03:00]}  d5 {[%clk 0:02:59]} 3. Nc3 {[%clk 0:03:00]}  Nf6 {[%clk 0:02:51]} 4. Bg5 {[%clk 0:02:59]}  Be7 {[%clk 0:02:50]} 5. e5 {[%clk 0:02:57]}  Nfd7 {[%clk 0:02:44]} 6. h4 {[%clk 0:02:57]}  a6 {[%clk 0:02:40]} 7. Qg4 {[%clk 0:02:49]}  c5 {[%clk 0:02:10]} 8. Bxe7 {[%clk 0:02:43]}  Qxe7 {[%clk 0:02:11]} 9. Qxg7 {[%clk 0:02:43]}  Rf8 {[%clk 0:02:11]} 10. Nf3 {[%clk 0:02:34]}  Nc6 {[%clk 0:02:07]} 11. dxc5 {[%clk 0:02:28]}  Qxc5 {[%clk 0:02:05]} 12. O-O-O {[%clk 0:02:23]}  b5 {[%clk 0:01:54]} 13. Ng5 {[%clk 0:01:49]}  b4 {[%clk 0:01:27]} 14. Nxd5 {[%clk 0:01:19]}  exd5 {[%clk 0:01:21]} 15. e6 {[%clk 0:01:19]}  fxe6 {[%clk 0:01:02]} 16. Nxe6 {[%clk 0:01:20]}  Qd6 {[%clk 0:00:33]} 17. Re1 {[%clk 0:01:15]}  Nce5 {[%clk 0:00:26]} 18. Nxf8 {[%clk 0:01:08]}  Qxf8 {[%clk 0:00:26]} 19. Rxe5+ {[%clk 0:01:06]}  Nxe5 {[%clk 0:00:26]} 20. Qxe5+ {[%clk 0:01:06]}  Qe7 {[%clk 0:00:25]} 21. Qxe7+ {[%clk 0:00:54]}  Kxe7 {[%clk 0:00:26]} 22. Bd3 {[%clk 0:00:54]}  h6 {[%clk 0:00:24]} 23. Re1+ {[%clk 0:00:53]}  Kd6 {[%clk 0:00:20]} 24. Re8 {[%clk 0:00:52]} 1-0

[Event "January 2 Early 2024"]
[Site "https://www.chess.com"]
[Date "2024.01.02"]
[Round "6"]
[White "Legenia, Artem"]
[Black "Maltsevskaya, Aleksandra"]
[Result "1-0"]
[Board "128"]
[TimeControl "180+1"]
[WhiteFideId "14136945"]
[BlackFideId "24174041"]
[WhiteElo "2368"]
[BlackElo "2589"]
[WhiteTeam "UKR"]
[BlackTeam "POL"]
[WhiteClock "0:00:29"]
[BlackClock "0:00:02"]

1. c4 {[%clk 0:03:00]}  Nf6 {[%clk 0:02:28]} 2. Nf3 {[%clk 0:02:59]}  g6 {[%clk 0:02:27]} 3. b3 {[%clk 0:02:59]}  Bg7 {[%clk 0:02:28]} 4. Bb2 {[%clk 0:03:00]}  d6 {[%clk 0:02:27]} 5. g3 {[%clk 0:03:00]}  O-O {[%clk 0:02:27]} 6. Bg2 {[%clk 0:03:01]}  e5 {[%clk 0:02:27]} 7. O-O {[%clk 0:03:01]}  Nbd7 {[%clk 0:02:26]} 8. d3 {[%clk 0:03:01]}  Nc5 {[%clk 0:02:26]} 9. Qc2 {[%clk 0:03:02]}  a5 {[%clk 0:02:27]} 10. Nbd2 {[%clk 0:03:02]}  a4 {[%clk 0:02:27]} 11. Rab1 {[%clk 0:02:59]}  axb3 {[%clk 0:02:27]} 12. axb3 {[%clk 0:02:59]}  c6 {[%clk 0:02:07]} 13. Ra1 {[%clk 0:02:48]}  Rxa1 {[%clk 0:02:06]} 14. Rxa1 {[%clk 0:02:48]}  Qb6 {[%clk 0:02:04]} 15. Bc3 {[%clk 0:02:32]}  Be6 {[%clk 0:02:04]} 16. b4 {[%clk 0:02:24]}  Ncd7 {[%clk 0:02:03]} 17. Qb2 {[%clk 0:02:24]}  h6 {[%clk 0:01:57]} 18. e3 {[%clk 0:02:18]}  Nh5 {[%clk 0:01:47]} 19. d4 {[%clk 0:02:14]}  e4 {[%clk 0:01:39]} 20. Ne1 {[%clk 0:02:04]}  f5 {[%clk 0:01:38]} 21. f3 {[%clk 0:01:45]}  d5 {[%clk 0:01:25]} 22. c5 {[%clk 0:01:45]}  Qd8 {[%clk 0:01:16]} 23. f4 {[%clk 0:01:45]}  g5 {[%clk 0:01:16]} 24. Nf1 {[%clk 0:01:42]}  Kh7 {[%clk 0:01:15]} 25. b5 {[%clk 0:01:41]}  Ndf6 {[%clk 0:01:14]} 26. h3 {[%clk 0:01:35]}  gxf4 {[%clk 0:01:14]} 27. exf4 {[%clk 0:01:32]}  e3 {[%clk 0:01:11]} 28. bxc6 {[%clk 0:01:23]}  bxc6 {[%clk 0:01:10]} 29. Qe2 {[%clk 0:01:18]}  Ne4 {[%clk 0:01:09]} 30. Qxe3 {[%clk 0:01:16]}  Nxc3 {[%clk 0:01:09]} 31. Qxc3 {[%clk 0:01:16]}  Qf6 {[%clk 0:01:09]} 32. Nf3 {[%clk 0:01:16]}  Rb8 {[%clk 0:01:05]} 33. Ne5 {[%clk 0:01:11]}  Bc8 {[%clk 0:00:55]} 34. Qd3 {[%clk 0:01:02]}  Rb2 {[%clk 0:00:47]} 35. Qc3 {[%clk 0:00:52]}  Rb8 {[%clk 0:00:43]} 36. Qf3 {[%clk 0:00:50]}  Nxg3 {[%clk 0:00:20]} 37. Nxg3 {[%clk 0:00:50]}  Qh4 {[%clk 0:00:19]} 38. Ra7 {[%clk 0:00:46]}  Rb1+ {[%clk 0:00:18]} 39. Kh2 {[%clk 0:00:47]}  Be6 {[%clk 0:00:13]} 40. Qh5 {[%clk 0:00:40]}  Qf6 {[%clk 0:00:11]} 41. Qe8 {[%clk 0:00:31]}  Rb2 {[%clk 0:00:02]} 42. Nh5 {[%clk 0:00:29]} 1-0

[Event "January 2 Early 2024"]
[Site "https://www.chess.com"]
[Date "2024.01.02"]
[Round "6"]
[White "Munoz Galvez, Jhon Edison"]
[Black "Lima, Artur Tin Lun Dai"]
[Result "1-0"]
[Board "129"]
[TimeControl "180+1"]
[WhiteFideId "4403797"]
[BlackFideId "22773150"]
[WhiteElo "2580"]
[BlackElo "2358"]
[WhiteTeam "COL"]
[BlackTeam "BRA"]
[WhiteClock "0:02:19"]
[BlackClock "0:01:40"]

1. d4 {[%clk 0:02:57]}  d5 {[%clk 0:02:58]} 2. Nf3 {[%clk 0:02:57]}  Nf6 {[%clk 0:02:58]} 3. c4 {[%clk 0:02:57]}  e6 {[%clk 0:02:57]} 4. Nc3 {[%clk 0:02:57]}  c5 {[%clk 0:02:57]} 5. cxd5 {[%clk 0:02:57]}  exd5 {[%clk 0:02:57]} 6. g3 {[%clk 0:02:57]}  Nc6 {[%clk 0:02:57]} 7. Bg2 {[%clk 0:02:57]}  cxd4 {[%clk 0:02:57]} 8. Nxd4 {[%clk 0:02:57]}  Bc5 {[%clk 0:02:57]} 9. Nb3 {[%clk 0:02:57]}  Bb6 {[%clk 0:02:57]} 10. O-O {[%clk 0:02:57]}  O-O {[%clk 0:02:54]} 11. Bg5 {[%clk 0:02:57]}  d4 {[%clk 0:02:51]} 12. Nd5 {[%clk 0:02:57]}  Be6 {[%clk 0:02:40]} 13. Bxf6 {[%clk 0:02:56]}  gxf6 {[%clk 0:02:40]} 14. Nxb6 {[%clk 0:02:56]}  axb6 {[%clk 0:02:40]} 15. a3 {[%clk 0:02:48]}  Re8 {[%clk 0:02:25]} 16. Nd2 {[%clk 0:02:48]}  Bf5 {[%clk 0:02:19]} 17. Re1 {[%clk 0:02:44]}  Qd6 {[%clk 0:02:18]} 18. Rc1 {[%clk 0:02:42]}  Rad8 {[%clk 0:02:17]} 19. Nc4 {[%clk 0:02:43]}  Qc7 {[%clk 0:02:10]} 20. Qb3 {[%clk 0:02:42]}  d3 {[%clk 0:02:08]} 21. e4 {[%clk 0:02:37]}  Be6 {[%clk 0:02:07]} 22. Red1 {[%clk 0:02:29]}  Qd7 {[%clk 0:01:57]} 23. Qxb6 {[%clk 0:02:25]}  Bxc4 {[%clk 0:01:50]} 24. Rxc4 {[%clk 0:02:23]}  d2 {[%clk 0:01:50]} 25. Rc2 {[%clk 0:02:23]}  Qd3 {[%clk 0:01:40]} 26. Rcxd2 {[%clk 0:02:19]} 1-0